[Event "Early-Titled-Tuesday-Blitz-November-28-2023"]
[Site "Chess.com"]
[Date "2023.11.28"]
[Round "11"]
[White "secretsuperstar7"]
[Black "Felix-Rose"]
[Result "1-0"]
[WhiteElo "2458"]
[BlackElo "2338"]
[TimeControl "180+1"]
[EndTime "10:11:04 PST"]
[Termination "secretsuperstar7 won by resignation"]

1. c4 {[%clk 0:02:55.9]} 1... e6 {[%clk 0:02:59]} 2. Nc3 {[%clk 0:02:55.2]} 2...
d5 {[%clk 0:02:59.3]} 3. e3 {[%clk 0:02:55.7]} 3... Nf6 {[%clk 0:02:59.4]} 4.
Nf3 {[%clk 0:02:56]} 4... Be7 {[%clk 0:02:59.4]} 5. b3 {[%clk 0:02:56.4]} 5...
O-O {[%clk 0:02:59.5]} 6. Bb2 {[%clk 0:02:56.8]} 6... c5 {[%clk 0:02:59.2]} 7.
cxd5 {[%clk 0:02:55.9]} 7... Nxd5 {[%clk 0:02:59.5]} 8. Be2 {[%clk 0:02:52.9]}
8... b6 {[%clk 0:02:55.9]} 9. O-O {[%clk 0:02:52.3]} 9... Bb7 {[%clk 0:02:54.3]}
10. d4 {[%clk 0:02:51]} 10... Nxc3 {[%clk 0:02:48.6]} 11. Bxc3 {[%clk
0:02:50.5]} 11... Nc6 {[%clk 0:02:46.2]} 12. Rc1 {[%clk 0:02:41.6]} 12... cxd4
{[%clk 0:02:43.5]} 13. Nxd4 {[%clk 0:02:41.3]} 13... Nxd4 {[%clk 0:02:39.9]} 14.
Bxd4 {[%clk 0:02:40.9]} 14... Bf6 {[%clk 0:02:24.9]} 15. Bxf6 {[%clk 0:02:35.5]}
15... Qxf6 {[%clk 0:02:25.8]} 16. Rc7 {[%clk 0:02:33]} 16... Rfd8 {[%clk
0:02:19.7]} 17. Qc2 {[%clk 0:02:24.5]} 17... Rac8 {[%clk 0:02:00.1]} 18. Rc1
{[%clk 0:02:23.5]} 18... Rxc7 {[%clk 0:01:50.6]} 19. Qxc7 {[%clk 0:02:22.4]}
19... Bd5 {[%clk 0:01:33.6]} 20. Rd1 {[%clk 0:02:15.2]} 20... Ra8 {[%clk
0:01:24]} 21. Rd4 {[%clk 0:01:39.7]} 21... h5 {[%clk 0:01:10.8]} 22. Bxh5 {[%clk
0:01:10.5]} 22... g6 {[%clk 0:00:41.8]} 23. Be2 {[%clk 0:01:01.4]} 23... Qg5
{[%clk 0:00:30.8]} 24. Rg4 {[%clk 0:00:56.1]} 24... Qf5 {[%clk 0:00:26.9]} 25.
e4 {[%clk 0:00:36.1]} 25... Bxe4 {[%clk 0:00:20.3]} 26. Rf4 {[%clk 0:00:36]}
26... Qg5 {[%clk 0:00:12.1]} 27. Qxf7+ {[%clk 0:00:32.9]} 27... Kh8 {[%clk
0:00:08.5]} 28. Rxe4 {[%clk 0:00:30.1]} 28... Qc1+ {[%clk 0:00:08.6]} 29. Bf1
{[%clk 0:00:30.2]} 29... Rg8 {[%clk 0:00:07.6]} 30. Rh4+ {[%clk 0:00:27.9]} 1-0

[Event "Early-Titled-Tuesday-Blitz-November-28-2023"]
[Site "Chess.com"]
[Date "2023.11.28"]
[Round "11"]
[White "WindWhistler11"]
[Black "carokannlover213"]
[Result "0-1"]
[WhiteElo "2556"]
[BlackElo "2690"]
[TimeControl "180+1"]
[EndTime "10:11:05 PST"]
[Termination "carokannlover213 won on time"]

1. Nf3 {[%clk 0:02:53.3]} 1... g6 {[%clk 0:03:00.9]} 2. g3 {[%clk 0:02:53.1]}
2... Bg7 {[%clk 0:03:01.4]} 3. Bg2 {[%clk 0:02:53.9]} 3... e5 {[%clk 0:03:01.8]}
4. O-O {[%clk 0:02:54.6]} 4... e4 {[%clk 0:03:02.2]} 5. Ne1 {[%clk 0:02:54.8]}
5... d5 {[%clk 0:03:02.6]} 6. d3 {[%clk 0:02:55.5]} 6... exd3 {[%clk 0:03:02.8]}
7. Nxd3 {[%clk 0:02:53.9]} 7... Ne7 {[%clk 0:03:03.2]} 8. c3 {[%clk 0:02:48.3]}
8... O-O {[%clk 0:03:02.9]} 9. Bg5 {[%clk 0:02:46.8]} 9... h6 {[%clk 0:03:01]}
10. Bf4 {[%clk 0:02:43.7]} 10... Bf5 {[%clk 0:02:58.1]} 11. Na3 {[%clk
0:02:41.7]} 11... Nd7 {[%clk 0:02:55.7]} 12. Nb5 {[%clk 0:02:40.8]} 12... c6
{[%clk 0:02:48.6]} 13. Bc7 {[%clk 0:02:20.7]} 13... Qc8 {[%clk 0:02:45.2]} 14.
Bd6 {[%clk 0:02:21]} 14... Qd8 {[%clk 0:02:41.2]} 15. Nd4 {[%clk 0:02:12]} 15...
Bxd3 {[%clk 0:02:38.4]} 16. exd3 {[%clk 0:01:56.3]} 16... Bxd4 {[%clk
0:02:28.4]} 17. cxd4 {[%clk 0:01:55.1]} 17... Nf5 {[%clk 0:02:29]} 18. Bxf8
{[%clk 0:01:52]} 18... Kxf8 {[%clk 0:02:29.5]} 19. Bh3 {[%clk 0:01:23.7]} 19...
Nxd4 {[%clk 0:02:23.6]} 20. Re1 {[%clk 0:01:13.3]} 20... Nc5 {[%clk 0:02:01.3]}
21. Re3 {[%clk 0:01:04]} 21... Qf6 {[%clk 0:01:57.2]} 22. Qd2 {[%clk 0:00:23.3]}
22... Kg7 {[%clk 0:01:50.2]} 23. Bg2 {[%clk 0:00:23]} 23... Nf5 {[%clk
0:01:48.2]} 24. Rf3 {[%clk 0:00:22.1]} 24... h5 {[%clk 0:01:24.6]} 25. Re1
{[%clk 0:00:21.9]} 25... Ne6 {[%clk 0:01:24.2]} 26. Bh3 {[%clk 0:00:16.9]} 26...
Ng5 {[%clk 0:01:14.3]} 27. Rxf5 {[%clk 0:00:04.6]} 27... Nxh3+ {[%clk
0:01:10.4]} 28. Kg2 {[%clk 0:00:04.1]} 28... Qxf5 {[%clk 0:01:10.9]} 29. Qc3+
{[%clk 0:00:04.8]} 29... Kg8 {[%clk 0:01:09.4]} 30. f4 {[%clk 0:00:04.6]} 30...
Nxf4+ {[%clk 0:01:07.1]} 31. gxf4 {[%clk 0:00:04.5]} 31... Qg4+ {[%clk
0:01:07.6]} 32. Kh1 {[%clk 0:00:04]} 32... Qf3+ {[%clk 0:01:07.8]} 33. Kg1
{[%clk 0:00:04.2]} 33... Qxf4 {[%clk 0:01:08.7]} 34. Rf1 {[%clk 0:00:02.1]}
34... Qg4+ {[%clk 0:01:05.4]} 35. Kh1 {[%clk 0:00:02.3]} 35... Re8 {[%clk
0:01:03.7]} 36. Qf6 {[%clk 0:00:02.6]} 36... Qe6 {[%clk 0:01:03.7]} 37. Qf2
{[%clk 0:00:02.2]} 37... b6 {[%clk 0:01:02.7]} 38. h3 {[%clk 0:00:01.9]} 38...
c5 {[%clk 0:01:03]} 39. Qg3 {[%clk 0:00:02]} 39... d4 {[%clk 0:01:02.6]} 40. Rf3
{[%clk 0:00:02]} 40... Qe1+ {[%clk 0:01:01.8]} 41. Kg2 {[%clk 0:00:01.9]} 41...
Re2+ {[%clk 0:01:01]} 42. Rf2 {[%clk 0:00:01.8]} 42... Rxf2+ {[%clk 0:00:54.5]}
43. Qxf2 {[%clk 0:00:02.7]} 43... Qxf2+ {[%clk 0:00:54.9]} 0-1

[Event "Early-Titled-Tuesday-Blitz-November-28-2023"]
[Site "Chess.com"]
[Date "2023.11.28"]
[Round "11"]
[White "BarloNadera"]
[Black "LimeInTheCoconut"]
[Result "0-1"]
[WhiteElo "2167"]
[BlackElo "2396"]
[TimeControl "180+1"]
[EndTime "10:11:09 PST"]
[Termination "LimeInTheCoconut won on time"]

1. d4 {[%clk 0:03:00.9]} 1... g6 {[%clk 0:02:59.4]} 2. c4 {[%clk 0:02:59.3]}
2... Bg7 {[%clk 0:02:59.4]} 3. Nc3 {[%clk 0:02:59.2]} 3... d6 {[%clk 0:02:59.8]}
4. e4 {[%clk 0:02:59.2]} 4... Nc6 {[%clk 0:02:59.7]} 5. d5 {[%clk 0:02:54.8]}
5... Nd4 {[%clk 0:02:59.4]} 6. Be3 {[%clk 0:02:54.5]} 6... e5 {[%clk 0:02:58.9]}
7. Nge2 {[%clk 0:02:54.2]} 7... Nxe2 {[%clk 0:02:57]} 8. Bxe2 {[%clk 0:02:53.8]}
8... f5 {[%clk 0:02:49.5]} 9. f3 {[%clk 0:02:53.2]} 9... Bh6 {[%clk 0:02:44.9]}
10. Qd2 {[%clk 0:02:45.3]} 10... Bxe3 {[%clk 0:02:38.1]} 11. Qxe3 {[%clk
0:02:44.4]} 11... Nf6 {[%clk 0:02:37.6]} 12. g3 {[%clk 0:02:22.5]} 12... O-O
{[%clk 0:02:36.1]} 13. O-O-O {[%clk 0:02:15.5]} 13... b6 {[%clk 0:02:16.2]} 14.
Rdg1 {[%clk 0:01:56.7]} 14... Bd7 {[%clk 0:02:13.9]} 15. g4 {[%clk 0:01:49.9]}
15... f4 {[%clk 0:02:10]} 16. Qf2 {[%clk 0:01:48]} 16... Ne8 {[%clk 0:01:58.3]}
17. h4 {[%clk 0:01:47.1]} 17... h6 {[%clk 0:01:57.4]} 18. g5 {[%clk 0:01:44.4]}
18... h5 {[%clk 0:01:56.1]} 19. Bf1 {[%clk 0:01:44.1]} 19... a6 {[%clk
0:01:42.8]} 20. a3 {[%clk 0:01:36.5]} 20... c5 {[%clk 0:01:33.2]} 21. Bh3 {[%clk
0:01:17.7]} 21... Bxh3 {[%clk 0:01:30]} 22. Rxh3 {[%clk 0:01:17.3]} 22... b5
{[%clk 0:01:30.9]} 23. Qf1 {[%clk 0:01:12.1]} 23... bxc4 {[%clk 0:01:23.9]} 24.
Qxc4 {[%clk 0:01:09.7]} 24... Nc7 {[%clk 0:01:24.5]} 25. Rh2 {[%clk 0:01:08.5]}
25... Rb8 {[%clk 0:01:23.6]} 26. a4 {[%clk 0:01:00.4]} 26... Rb4 {[%clk
0:01:21.8]} 27. Qa2 {[%clk 0:00:58.5]} 27... Qb8 {[%clk 0:01:19.3]} 28. Rd1
{[%clk 0:00:54.1]} 28... Qb6 {[%clk 0:01:18.2]} 29. Rc2 {[%clk 0:00:35.5]} 29...
Rb8 {[%clk 0:01:18.3]} 30. Qa3 {[%clk 0:00:22.5]} 30... Qa5 {[%clk 0:01:18]} 31.
Qa2 {[%clk 0:00:16.7]} 31... Na8 {[%clk 0:01:16.8]} 32. Kd2 {[%clk 0:00:10]}
32... Nb6 {[%clk 0:01:14]} 33. Ke2 {[%clk 0:00:07.9]} 33... Nc4 {[%clk
0:01:09.5]} 34. Rb1 {[%clk 0:00:05.2]} 34... Rb3 {[%clk 0:01:01.5]} 35. Kf2
{[%clk 0:00:04.1]} 35... Qb4 {[%clk 0:00:56.9]} 36. Nd1 {[%clk 0:00:02.9]} 36...
Nd2 {[%clk 0:00:52.4]} 37. Rbc1 {[%clk 0:00:01.5]} 37... Nxf3 {[%clk 0:00:45.7]}
0-1

[Event "Early-Titled-Tuesday-Blitz-November-28-2023"]
[Site "Chess.com"]
[Date "2023.11.28"]
[Round "11"]
[White "Goffredo_Fofi"]
[Black "Roman_Ovetchkin"]
[Result "0-1"]
[WhiteElo "2487"]
[BlackElo "2659"]
[TimeControl "180+1"]
[EndTime "10:11:17 PST"]
[Termination "Roman_Ovetchkin won by resignation"]

1. d4 {[%clk 0:03:00.9]} 1... Nf6 {[%clk 0:02:47.5]} 2. c3 {[%clk 0:03:00.3]}
2... d6 {[%clk 0:02:40.1]} 3. Bg5 {[%clk 0:03:00]} 3... Nbd7 {[%clk 0:02:39.1]}
4. Nd2 {[%clk 0:02:59.5]} 4... h6 {[%clk 0:02:38.3]} 5. Bh4 {[%clk 0:02:59.3]}
5... g5 {[%clk 0:02:38.4]} 6. Bg3 {[%clk 0:02:59.5]} 6... Nh5 {[%clk 0:02:38.8]}
7. e3 {[%clk 0:02:58.3]} 7... Ndf6 {[%clk 0:02:38]} 8. Bd3 {[%clk 0:02:44.2]}
8... Bg7 {[%clk 0:02:32.8]} 9. Ne2 {[%clk 0:02:44.2]} 9... e6 {[%clk 0:02:30.4]}
10. h4 {[%clk 0:02:41.4]} 10... Nxg3 {[%clk 0:02:28.1]} 11. Nxg3 {[%clk
0:02:42.3]} 11... g4 {[%clk 0:02:26.5]} 12. h5 {[%clk 0:02:32.5]} 12... Bd7
{[%clk 0:02:18.2]} 13. Qe2 {[%clk 0:02:21.1]} 13... Qe7 {[%clk 0:02:18]} 14.
O-O-O {[%clk 0:02:18.9]} 14... O-O-O {[%clk 0:02:14.4]} 15. Kb1 {[%clk
0:02:18.9]} 15... Kb8 {[%clk 0:02:13.9]} 16. Rc1 {[%clk 0:02:04.8]} 16... Rhg8
{[%clk 0:02:13.3]} 17. Bb5 {[%clk 0:01:53.5]} 17... Bc8 {[%clk 0:02:12.8]} 18.
e4 {[%clk 0:01:49.8]} 18... Bh8 {[%clk 0:02:01.6]} 19. Rhe1 {[%clk 0:01:45.8]}
19... e5 {[%clk 0:01:57.6]} 20. d5 {[%clk 0:01:45.4]} 20... Rg5 {[%clk
0:01:54.5]} 21. Rh1 {[%clk 0:01:44.6]} 21... Ne8 {[%clk 0:01:18]} 22. Bd3 {[%clk
0:01:43.6]} 22... Ng7 {[%clk 0:01:16.6]} 23. Nc4 {[%clk 0:01:39]} 23... f5
{[%clk 0:01:02.8]} 24. exf5 {[%clk 0:01:20.1]} 24... Nxf5 {[%clk 0:00:58]} 25.
Nxf5 {[%clk 0:01:10.3]} 25... Rxf5 {[%clk 0:00:58.1]} 26. Bxf5 {[%clk
0:01:10.5]} 26... Bxf5+ {[%clk 0:00:58.2]} 27. Ka1 {[%clk 0:01:08.9]} 27... Qg5
{[%clk 0:00:55.6]} 28. Ne3 {[%clk 0:01:06]} 28... Bc8 {[%clk 0:00:54.1]} 29. c4
{[%clk 0:01:05.1]} 29... e4 {[%clk 0:00:51.9]} 30. c5 {[%clk 0:01:03.6]} 30...
Rf8 {[%clk 0:00:41.8]} 31. g3 {[%clk 0:00:59.8]} 31... Rf3 {[%clk 0:00:40.3]}
32. cxd6 {[%clk 0:00:57.7]} 32... cxd6 {[%clk 0:00:40.5]} 33. Rxc8+ {[%clk
0:00:42.2]} 33... Kxc8 {[%clk 0:00:40.3]} 34. Qc4+ {[%clk 0:00:42.8]} 34... Kb8
{[%clk 0:00:36.5]} 35. Rc1 {[%clk 0:00:41.2]} 35... Qd8 {[%clk 0:00:34.8]} 36.
Qxe4 {[%clk 0:00:41]} 36... Rxf2 {[%clk 0:00:33.8]} 37. Rc2 {[%clk 0:00:37.9]}
37... Rxc2 {[%clk 0:00:28.8]} 38. Nxc2 {[%clk 0:00:36.6]} 38... Qf6 {[%clk
0:00:27.3]} 39. Nd4 {[%clk 0:00:17.8]} 39... Qf1+ {[%clk 0:00:24.1]} 0-1

[Event "Early-Titled-Tuesday-Blitz-November-28-2023"]
[Site "Chess.com"]
[Date "2023.11.28"]
[Round "11"]
[White "kunaevchess"]
[Black "AnaKuchava"]
[Result "0-1"]
[WhiteElo "2155"]
[BlackElo "2219"]
[TimeControl "180+1"]
[EndTime "10:11:18 PST"]
[Termination "AnaKuchava won by resignation"]

1. e4 {[%clk 0:02:54.4]} 1... c5 {[%clk 0:02:52.8]} 2. Nf3 {[%clk 0:02:52.8]}
2... d6 {[%clk 0:02:51.8]} 3. d4 {[%clk 0:02:52]} 3... cxd4 {[%clk 0:02:51.8]}
4. Qxd4 {[%clk 0:02:52.7]} 4... Nf6 {[%clk 0:02:52.4]} 5. Nc3 {[%clk 0:02:52.1]}
5... a6 {[%clk 0:02:52.3]} 6. Qd3 {[%clk 0:02:49.9]} 6... Nc6 {[%clk 0:02:52]}
7. Be2 {[%clk 0:02:48.3]} 7... g6 {[%clk 0:02:51.2]} 8. O-O {[%clk 0:02:47.2]}
8... Bg7 {[%clk 0:02:51.8]} 9. Nd5 {[%clk 0:02:47.1]} 9... O-O {[%clk
0:02:51.9]} 10. c3 {[%clk 0:02:47.3]} 10... Bg4 {[%clk 0:02:49.6]} 11. h3 {[%clk
0:02:43.9]} 11... Bxf3 {[%clk 0:02:47.1]} 12. Qxf3 {[%clk 0:02:43.2]} 12... Ne5
{[%clk 0:02:46.9]} 13. Nxf6+ {[%clk 0:02:43.6]} 13... Bxf6 {[%clk 0:02:45.9]}
14. Qg3 {[%clk 0:02:42.7]} 14... Rc8 {[%clk 0:02:42.9]} 15. f4 {[%clk
0:02:39.9]} 15... Nc4 {[%clk 0:02:38.2]} 16. Rd1 {[%clk 0:02:08.5]} 16... Qb6+
{[%clk 0:02:31.7]} 17. Kh2 {[%clk 0:02:04.4]} 17... Nxb2 {[%clk 0:02:19.6]} 18.
Rb1 {[%clk 0:02:04.1]} 18... Bxc3 {[%clk 0:02:17.7]} 19. Bxb2 {[%clk 0:01:57.6]}
19... Bxb2 {[%clk 0:02:17]} 20. Rd2 {[%clk 0:01:56]} 20... Rc1 {[%clk
0:02:07.6]} 21. Rxc1 {[%clk 0:01:35.9]} 21... Bxc1 {[%clk 0:02:08.5]} 22. Rc2
{[%clk 0:01:33.9]} 22... Be3 {[%clk 0:01:43.5]} 23. Bc4 {[%clk 0:01:23.6]} 23...
Bg1+ {[%clk 0:01:32.9]} 24. Kh1 {[%clk 0:01:18.6]} 24... Qb1 {[%clk 0:01:33.8]}
25. Qb3 {[%clk 0:01:03.4]} 25... Qxb3 {[%clk 0:01:12]} 26. Bxb3 {[%clk
0:01:04.3]} 26... Be3 {[%clk 0:01:10.5]} 27. g3 {[%clk 0:00:58]} 27... Bc5
{[%clk 0:01:10.2]} 28. e5 {[%clk 0:00:55.3]} 28... b5 {[%clk 0:01:07.6]} 29. e6
{[%clk 0:00:44.2]} 29... fxe6 {[%clk 0:01:03.7]} 30. Bxe6+ {[%clk 0:00:42]}
30... Kg7 {[%clk 0:01:04.2]} 31. Re2 {[%clk 0:00:39.6]} 31... Kf6 {[%clk
0:01:03.9]} 32. Bd5 {[%clk 0:00:37.1]} 32... e5 {[%clk 0:00:59.1]} 33. fxe5+
{[%clk 0:00:35.5]} 33... dxe5 {[%clk 0:00:59.9]} 34. Rc2 {[%clk 0:00:30.5]}
34... Rc8 {[%clk 0:00:59.6]} 35. Bb7 {[%clk 0:00:30.4]} 35... Rc7 {[%clk
0:00:56.2]} 36. Bxa6 {[%clk 0:00:29.9]} 36... b4 {[%clk 0:00:56.6]} 37. Kg2
{[%clk 0:00:25.6]} 37... e4 {[%clk 0:00:54.7]} 38. Kf1 {[%clk 0:00:17.5]} 38...
Ke5 {[%clk 0:00:54.9]} 39. Ke2 {[%clk 0:00:17.3]} 39... Kd4 {[%clk 0:00:52.7]}
40. Rc4+ {[%clk 0:00:16.8]} 40... Kd5 {[%clk 0:00:49.2]} 41. Bb5 {[%clk
0:00:15]} 41... Rb7 {[%clk 0:00:41.7]} 42. Ba6 {[%clk 0:00:13.8]} 42... Rb6
{[%clk 0:00:41.9]} 43. Rc2 {[%clk 0:00:08.5]} 43... Rxa6 {[%clk 0:00:41.5]} 44.
Rd2+ {[%clk 0:00:09.4]} 44... Bd4 {[%clk 0:00:42]} 45. Rb2 {[%clk 0:00:09.1]}
45... Bxb2 {[%clk 0:00:41]} 0-1

[Event "Early-Titled-Tuesday-Blitz-November-28-2023"]
[Site "Chess.com"]
[Date "2023.11.28"]
[Round "11"]
[White "seopie"]
[Black "mishanick"]
[Result "0-1"]
[WhiteElo "2874"]
[BlackElo "3060"]
[TimeControl "180+1"]
[EndTime "10:11:26 PST"]
[Termination "mishanick won by resignation"]

1. e4 {[%clk 0:03:00.9]} 1... c5 {[%clk 0:02:57.2]} 2. Nf3 {[%clk 0:03:00.6]}
2... d6 {[%clk 0:02:56.7]} 3. Bc4 {[%clk 0:02:56.1]} 3... Nf6 {[%clk 0:02:56.8]}
4. d3 {[%clk 0:02:55.7]} 4... g6 {[%clk 0:02:55.4]} 5. O-O {[%clk 0:02:55.5]}
5... Bg7 {[%clk 0:02:56]} 6. Re1 {[%clk 0:02:55.5]} 6... O-O {[%clk 0:02:56.6]}
7. h3 {[%clk 0:02:51.3]} 7... Nc6 {[%clk 0:02:57.2]} 8. Nbd2 {[%clk 0:02:46.1]}
8... b6 {[%clk 0:02:55.9]} 9. c3 {[%clk 0:02:43.1]} 9... Bb7 {[%clk 0:02:54.6]}
10. Bb3 {[%clk 0:02:41.4]} 10... e5 {[%clk 0:02:52.1]} 11. Nf1 {[%clk
0:02:40.3]} 11... d5 {[%clk 0:02:02.5]} 12. Ng3 {[%clk 0:02:35.1]} 12... Re8
{[%clk 0:01:59.3]} 13. Bg5 {[%clk 0:02:33.4]} 13... Na5 {[%clk 0:01:55.8]} 14.
Ba4 {[%clk 0:02:29.1]} 14... Re7 {[%clk 0:01:51.9]} 15. exd5 {[%clk 0:02:22.1]}
15... Qxd5 {[%clk 0:01:51.6]} 16. Ne4 {[%clk 0:02:20.4]} 16... Qe6 {[%clk
0:01:28.2]} 17. b4 {[%clk 0:02:16.4]} 17... Bxe4 {[%clk 0:01:19.3]} 18. dxe4
{[%clk 0:02:16.2]} 18... cxb4 {[%clk 0:01:19.9]} 19. cxb4 {[%clk 0:02:16.5]}
19... Nc4 {[%clk 0:01:19.9]} 20. Bb3 {[%clk 0:02:08.9]} 20... Rc8 {[%clk
0:01:15.3]} 21. b5 {[%clk 0:02:05.5]} 21... Rc5 {[%clk 0:00:47.7]} 22. Qe2
{[%clk 0:02:03.2]} 22... Qc8 {[%clk 0:00:46.8]} 23. a4 {[%clk 0:01:49]} 23...
Na5 {[%clk 0:00:45.6]} 24. Ba2 {[%clk 0:01:42.5]} 24... h6 {[%clk 0:00:44.8]}
25. Be3 {[%clk 0:01:40.3]} 25... Rc2 {[%clk 0:00:44.7]} 26. Rec1 {[%clk
0:01:37.4]} 26... Rec7 {[%clk 0:00:44.7]} 27. Rxc2 {[%clk 0:01:37.7]} 27... Rxc2
{[%clk 0:00:45.5]} 28. Qd3 {[%clk 0:01:38.6]} 28... Rc3 {[%clk 0:00:42]} 29. Qd1
{[%clk 0:01:27.2]} 29... Nc4 {[%clk 0:00:27.5]} 30. Bxc4 {[%clk 0:01:20.1]}
30... Qxc4 {[%clk 0:00:20.7]} 31. Nxe5 {[%clk 0:01:11.3]} 31... Qxe4 {[%clk
0:00:19.7]} 32. Nf3 {[%clk 0:01:04.7]} 32... Rxe3 {[%clk 0:00:19.5]} 33. fxe3
{[%clk 0:01:04.7]} 33... Qxe3+ {[%clk 0:00:20.4]} 34. Kh2 {[%clk 0:01:02.1]}
34... Ne4 {[%clk 0:00:20.6]} 35. Rc1 {[%clk 0:00:59.9]} 35... Qf4+ {[%clk
0:00:19.5]} 36. Kg1 {[%clk 0:00:59.5]} 36... Qe3+ {[%clk 0:00:19.6]} 37. Kh2
{[%clk 0:00:59.9]} 37... Bf8 {[%clk 0:00:16.7]} 38. Rc6 {[%clk 0:00:58.3]} 38...
Qf4+ {[%clk 0:00:15.5]} 39. Kg1 {[%clk 0:00:58.1]} 39... Bc5+ {[%clk 0:00:16]}
40. Rxc5 {[%clk 0:00:53]} 40... Nxc5 {[%clk 0:00:16.9]} 41. Qd8+ {[%clk
0:00:52.8]} 41... Kg7 {[%clk 0:00:17.4]} 42. a5 {[%clk 0:00:48.7]} 42... Ne6
{[%clk 0:00:12.5]} 43. Qd7 {[%clk 0:00:41.5]} 43... Qe3+ {[%clk 0:00:12.3]} 44.
Kh2 {[%clk 0:00:41]} 44... bxa5 {[%clk 0:00:13.2]} 45. Qe7 {[%clk 0:00:34.7]}
45... a4 {[%clk 0:00:13.1]} 46. Qb4 {[%clk 0:00:34.5]} 46... Qf4+ {[%clk
0:00:12.9]} 0-1

[Event "Early-Titled-Tuesday-Blitz-November-28-2023"]
[Site "Chess.com"]
[Date "2023.11.28"]
[Round "11"]
[White "crazy_m_attack"]
[Black "tantaan"]
[Result "0-1"]
[WhiteElo "2423"]
[BlackElo "2355"]
[TimeControl "180+1"]
[EndTime "10:11:27 PST"]
[Termination "tantaan won on time"]

1. e4 {[%clk 0:03:00.9]} 1... c5 {[%clk 0:02:59.7]} 2. Nf3 {[%clk 0:02:56.9]}
2... e6 {[%clk 0:02:57.2]} 3. d4 {[%clk 0:02:55.6]} 3... cxd4 {[%clk 0:02:56.5]}
4. Nxd4 {[%clk 0:02:55]} 4... Nf6 {[%clk 0:02:56.6]} 5. Nc3 {[%clk 0:02:54.6]}
5... Nc6 {[%clk 0:02:54.2]} 6. Ndb5 {[%clk 0:02:53.8]} 6... Bc5 {[%clk
0:02:53.8]} 7. Bf4 {[%clk 0:02:53.5]} 7... O-O {[%clk 0:02:52.6]} 8. Bc7 {[%clk
0:02:53.3]} 8... Qe7 {[%clk 0:02:52.2]} 9. Bd6 {[%clk 0:02:53.8]} 9... Bxd6
{[%clk 0:02:49.6]} 10. Qxd6 {[%clk 0:02:54.7]} 10... Qd8 {[%clk 0:02:48.2]} 11.
Nc7 {[%clk 0:02:54.6]} 11... Rb8 {[%clk 0:02:48]} 12. Be2 {[%clk 0:02:54.8]}
12... b5 {[%clk 0:02:40]} 13. e5 {[%clk 0:02:53.8]} 13... Nxe5 {[%clk
0:02:19.4]} 14. Nxe6 {[%clk 0:02:40.9]} 14... fxe6 {[%clk 0:01:57.9]} 15. Qxb8
{[%clk 0:02:30]} 15... Nfg4 {[%clk 0:01:57.8]} 16. f3 {[%clk 0:01:38.4]} 16...
Nc6 {[%clk 0:01:27.8]} 17. Qg3 {[%clk 0:01:33]} 17... Ne3 {[%clk 0:01:27.3]} 18.
Bd3 {[%clk 0:01:09.4]} 18... Nb4 {[%clk 0:01:27.3]} 19. Qf2 {[%clk 0:01:07.8]}
19... Qb6 {[%clk 0:01:21.6]} 20. Rc1 {[%clk 0:00:47.1]} 20... Bb7 {[%clk
0:01:17.7]} 21. Nd1 {[%clk 0:00:37.6]} 21... Nxd3+ {[%clk 0:01:02.6]} 22. cxd3
{[%clk 0:00:38.5]} 22... Nxg2+ {[%clk 0:00:45.5]} 23. Qxg2 {[%clk 0:00:21.7]}
23... Bxf3 {[%clk 0:00:45.8]} 24. Qg1 {[%clk 0:00:16.4]} 24... Qa5+ {[%clk
0:00:38.2]} 25. Nc3 {[%clk 0:00:15.7]} 25... b4 {[%clk 0:00:36.2]} 26. Ne4
{[%clk 0:00:10.4]} 26... b3+ {[%clk 0:00:33.4]} 27. Nd2 {[%clk 0:00:10.3]} 27...
Qe5+ {[%clk 0:00:28.1]} 28. Ne4 {[%clk 0:00:04.1]} 28... Qxb2 {[%clk 0:00:28.2]}
29. Qe3 {[%clk 0:00:02.5]} 29... Bxh1 {[%clk 0:00:25.1]} 30. axb3 {[%clk
0:00:02.7]} 30... Bg2 {[%clk 0:00:20.7]} 31. Qd2 {[%clk 0:00:03]} 31... Rf1+
{[%clk 0:00:19.3]} 32. Ke2 {[%clk 0:00:02.8]} 32... Qxc1 {[%clk 0:00:18.8]} 0-1

[Event "Early-Titled-Tuesday-Blitz-November-28-2023"]
[Site "Chess.com"]
[Date "2023.11.28"]
[Round "11"]
[White "InitiatingASC"]
[Black "NovoselovRoman"]
[Result "0-1"]
[WhiteElo "2352"]
[BlackElo "2551"]
[TimeControl "180+1"]
[EndTime "10:11:29 PST"]
[Termination "NovoselovRoman won by checkmate"]

1. d4 {[%clk 0:03:00.9]} 1... d5 {[%clk 0:02:57.1]} 2. c4 {[%clk 0:03:01]} 2...
e6 {[%clk 0:02:56.8]} 3. Nc3 {[%clk 0:03:00.9]} 3... Nf6 {[%clk 0:02:57.2]} 4.
cxd5 {[%clk 0:03:00.8]} 4... exd5 {[%clk 0:02:57.1]} 5. Bg5 {[%clk 0:03:00.2]}
5... c6 {[%clk 0:02:57]} 6. e3 {[%clk 0:03:00.1]} 6... Bd6 {[%clk 0:02:55.9]} 7.
Bd3 {[%clk 0:02:58.9]} 7... Nbd7 {[%clk 0:02:55.4]} 8. Nge2 {[%clk 0:02:56.1]}
8... O-O {[%clk 0:02:55.5]} 9. Ng3 {[%clk 0:02:52.1]} 9... h6 {[%clk 0:02:53.2]}
10. Nf5 {[%clk 0:02:44.3]} 10... Bc7 {[%clk 0:02:39.1]} 11. Nxh6+ {[%clk
0:02:39.4]} 11... gxh6 {[%clk 0:02:37.7]} 12. Bxh6 {[%clk 0:02:39.9]} 12... Re8
{[%clk 0:02:28.7]} 13. g4 {[%clk 0:02:29.2]} 13... Nf8 {[%clk 0:02:24.9]} 14. g5
{[%clk 0:02:15.9]} 14... Ne4 {[%clk 0:02:24.5]} 15. Bxf8 {[%clk 0:01:44.3]}
15... Kxf8 {[%clk 0:02:12.4]} 16. Bxe4 {[%clk 0:01:31.6]} 16... dxe4 {[%clk
0:02:11.2]} 17. Qh5 {[%clk 0:01:31.6]} 17... Ba5 {[%clk 0:01:47.8]} 18. Qh8+
{[%clk 0:01:00.3]} 18... Ke7 {[%clk 0:01:47.4]} 19. Qf6+ {[%clk 0:00:57.7]}
19... Kd7 {[%clk 0:01:45.1]} 20. Qxf7+ {[%clk 0:00:58]} 20... Re7 {[%clk
0:01:38.3]} 21. Qf5+ {[%clk 0:00:53.8]} 21... Re6 {[%clk 0:01:30.3]} 22. h4
{[%clk 0:00:50.4]} 22... Bxc3+ {[%clk 0:01:29]} 23. bxc3 {[%clk 0:00:50.3]}
23... Kc7 {[%clk 0:01:28.8]} 24. h5 {[%clk 0:00:46.6]} 24... Bd7 {[%clk
0:01:17.5]} 25. g6 {[%clk 0:00:39.1]} 25... Qg8 {[%clk 0:01:08.5]} 26. Qf4+
{[%clk 0:00:29]} 26... Rd6 {[%clk 0:00:52.1]} 27. h6 {[%clk 0:00:16.5]} 27...
Qxg6 {[%clk 0:00:49.4]} 28. h7 {[%clk 0:00:16.3]} 28... Rh8 {[%clk 0:00:47.2]}
29. c4 {[%clk 0:00:16.6]} 29... Kc8 {[%clk 0:00:34]} 30. O-O-O {[%clk
0:00:13.1]} 30... Rf6 {[%clk 0:00:31.2]} 31. Qe5 {[%clk 0:00:12.4]} 31... Rff8
{[%clk 0:00:26.4]} 32. Rdg1 {[%clk 0:00:12]} 32... Qf7 {[%clk 0:00:25.4]} 33. d5
{[%clk 0:00:10.3]} 33... Rxh7 {[%clk 0:00:24.5]} 34. Rxh7 {[%clk 0:00:09.2]}
34... Qxh7 {[%clk 0:00:24.4]} 35. Rg7 {[%clk 0:00:09.1]} 35... Qh1+ {[%clk
0:00:20.7]} 36. Kb2 {[%clk 0:00:09.3]} 36... Rxf2+ {[%clk 0:00:20.9]} 37. Kb3
{[%clk 0:00:08.2]} 37... Qb1+ {[%clk 0:00:20.9]} 38. Ka4 {[%clk 0:00:07.1]}
38... Rxa2# {[%clk 0:00:20.5]} 0-1